fUSD/lending_fUSD_20240531
["ID","MTS","AMOUNT","RATE_DAILY","PERIOD"]
[328299879,1717126282998,-500.0,0.00032889,11]
[328299880,1717126283007,-500.0,0.00032889,11]
[328299881,1717126283017,-500.0,0.00032889,11]
[328299882,1717126283026,-226.2360149,0.00032889,11]
[328299883,1717126283035,-389.96856606,0.00032889,11]
[328299884,1717126283045,-500.0,0.00032889,11]
[328299885,1717126283054,-500.0,0.00032889,11]
[328299886,1717126283063,-500.0,0.00032889,11]
[328299887,1717126283073,-500.0,0.00032889,11]
[328299888,1717126283083,-500.0,0.00032889,11]
[328299889,1717126283094,-500.0,0.00032889,11]
[328299890,1717126283107,-510.03,0.00032889,11]
[328299891,1717126283117,-456.34829251,0.00032889,11]
[328299892,1717126283126,-510.03,0.00032889,11]
[328299893,1717126283135,-510.03,0.00032889,11]
[328299894,1717126283147,-510.03,0.00032889,11]
[328299895,1717126283156,-500.0,0.00032889,11]
[328299896,1717126283166,-500.0,0.00032889,11]
[328299897,1717126283176,-500.0,0.00032889,11]
[328299898,1717126283185,-500.0,0.00032889,11]
[328299899,1717126283195,-500.0,0.00032889,11]
[328299900,1717126283205,-500.0,0.00032889,11]
[328299901,1717126283214,-500.0,0.00032889,11]
[328299902,1717126283223,-500.0,0.00032889,11]
[328299903,1717126283233,-500.0,0.00032889,11]
[328299904,1717126283243,-500.0,0.00032889,11]
[328299905,1717126283252,-500.0,0.00032889,11]
[328299906,1717126283261,-500.0,0.00032889,11]
[328299907,1717126283272,-500.0,0.00032889,11]
[328299908,1717126283282,-475.96,0.00032889,11]
[328299909,1717126283292,-500.0,0.00032889,11]
[328299910,1717126283301,-500.0,0.00032889,11]
[328299911,1717126283310,-500.0,0.00032889,11]
[328299912,1717126283320,-500.0,0.00032889,11]
[328299913,1717126283330,-500.0,0.00032889,11]
[328299914,1717126283339,-500.0,0.00032889,11]
[328299915,1717126283350,-500.0,0.00032889,11]
[328299916,1717126283360,-308.99905431,0.00032889,11]
[328299917,1717126283371,-500.0,0.00032889,11]
[328299918,1717126283381,-500.0,0.00032889,11]
[328299919,1717126283390,-500.0,0.00032889,11]
[328299920,1717126283400,-500.0,0.00032889,11]
[328299921,1717126283410,-500.0,0.00032889,11]
[328299922,1717126283419,-500.0,0.00032889,11]
[328299923,1717126283429,-500.0,0.00032889,11]
[328299924,1717126283439,-500.0,0.00032889,11]
[328299925,1717126283448,-500.0,0.00032889,11]
[328299926,1717126283458,-500.0,0.00032889,11]
[328299927,1717126283467,-500.0,0.00032889,11]
[328299928,1717126283478,-500.0,0.00032889,11]
[328299929,1717126283488,-500.0,0.00032889,11]
[328299930,1717126283497,-500.0,0.00032889,11]
[328299931,1717126283507,-167.15627377,0.0003289,10]
[328299932,1717126283516,-670972.98900842,0.0003289,2]
[328299933,1717126283526,-177470.57669769,0.0003289,2]
[328299934,1717126283535,-159.968093,0.0003289,7]
[328299935,1717126283545,-4281.42296838,0.00032892,4]
[328299936,1717126283554,-500.0,0.00032897,3]
[328299937,1717126283563,-500.0,0.00032899,11]
[328299938,1717126283573,-500.0,0.00032899,11]
[328299939,1717126283582,-500.0,0.00032899,2]
[328299940,1717126283592,-619.39664876,0.00032899,11]
[328299941,1717126283603,-575.66372868,0.00032899,11]
[328299942,1717126283612,-500.0,0.00032899,11]
[328299943,1717126283621,-500.0,0.00032899,11]
[328299944,1717126283631,-1035.25,0.00032899,11]
[328299945,1717126283640,-500.0,0.00032899,11]
[328299946,1717126283649,-500.0,0.00032899,11]
[328299947,1717126283659,-5012.0,0.000329,2]
[328299948,1717126283668,-178.35741748,0.000329,2]
[328299949,1717126283678,-501.32663182,0.000329,2]
[328299950,1717126283688,-2000.0,0.000329,2]
[328299951,1717126283697,-500.0,0.00032906,3]
[328299952,1717126283707,-500.0,0.00032914,3]
[328299953,1717126283716,-500.0,0.00032923,3]
[328299954,1717126283726,-4281.42296838,0.0003293,4]
[328299955,1717126283736,-500.0,0.00032932,3]
[328299956,1717126283745,-500.0,0.00032941,3]
[328299957,1717126283755,-212.59718619,0.00032946,2]
[328299958,1717126283764,-500.0,0.0003295,3]
[328299959,1717126283774,-500.0,0.00032958,3]
[328299960,1717126283784,-152.0,0.00032962,4]
[328299961,1717126283793,-176.17057157,0.00032966,2]
[328299962,1717126283803,-500.0,0.00032967,3]
[328299963,1717126283813,-4281.42296838,0.00032969,4]
[328299964,1717126283823,-500.0,0.00032976,3]
[328299965,1717126283832,-500.0,0.00032985,3]
[328299966,1717126283842,-167.15627377,0.00032993,10]
[328299967,1717126283853,-500.0,0.00032994,3]
[328299968,1717126283863,-247.04228669,0.00032994,5]
[328299969,1717126283872,-247.04228669,0.00032994,5]
[328299970,1717126283883,-1380.96350453,0.00032995,2]
[328299971,1717126283892,-577.40099432,0.00032995,2]
[328299972,1717126283902,-500.0,0.00032998,11]
[328299973,1717126283911,-638.79504245,0.00032998,11]
[328299974,1717126283920,-500.0,0.00032998,11]
[328299975,1717126283930,-500.0,0.00032998,11]
[328299976,1717126283940,-500.0,0.00032998,11]
[328299977,1717126283949,-589.71,0.00032998,11]
[328299978,1717126283959,-500.0,0.00032998,11]
[328299979,1717126283968,-500.0,0.00032998,11]
[328299980,1717126283977,-500.0,0.00032998,11]
[328299981,1717126283987,-500.0,0.00032998,11]
[328299982,1717126283996,-500.0,0.00032998,11]
[328299983,1717126284006,-685.46,0.00032998,11]
[328299984,1717126284016,-2247.1,0.00032998,11]
[328299985,1717126284025,-500.0,0.00032998,11]
[328299986,1717126284035,-500.0,0.00032998,11]
[328299987,1717126284045,-500.0,0.00032998,11]
[328299988,1717126284055,-500.0,0.00032998,11]
[328299989,1717126284064,-500.0,0.00032999,11]
[328299990,1717126284074,-430.02579566,0.00032999,11]
[328299991,1717126284083,-500.0,0.00032999,2]
[328299992,1717126284095,-500.0,0.00032999,11]
[328299993,1717126284109,-236.23695284,0.00032999,11]
[328299994,1717126284119,-1035.25,0.00032999,11]
[328299995,1717126284128,-500.0,0.00032999,11]
[328299996,1717126284138,-208.18434611,0.00032999,11]
[328299997,1717126284148,-500.0,0.00032999,11]
[328299998,1717126284158,-500.0,0.00032999,11]
[328299999,1717126284168,-500.0,0.00032999,11]
[328300000,1717126284180,-500.0,0.00032999,11]
[328300001,1717126284190,-500.0,0.00032999,11]
[328300002,1717126284200,-500.0,0.00032999,11]
[328300003,1717126284209,-500.0,0.00032999,11]
[328300004,1717126284219,-500.0,0.00032999,11]
[328300005,1717126284231,-500.0,0.00032999,11]
[328300006,1717126284241,-500.0,0.00032999,11]
[328300007,1717126284251,-573.44,0.00032999,11]
[328300008,1717126284261,-573.44,0.00032999,11]
[328300009,1717126284270,-500.0,0.00032999,11]
[328300010,1717126284280,-350.58555359,0.00032999,11]
[328300011,1717126284290,-500.0,0.00032999,11]
[328300012,1717126284299,-500.0,0.00032999,11]
[328300013,1717126284309,-571.92,0.00032999,11]
[328300014,1717126284318,-571.92,0.00032999,11]
[328300015,1717126284328,-446.61570576,0.00032999,11]
[328300016,1717126284338,-500.0,0.00032999,7]
[328300017,1717126284348,-426.37181824,0.00032999,7]
[328300018,1717126284358,-612.91,0.00032999,11]
[328300019,1717126284368,-612.91,0.00032999,11]
[328300020,1717126284377,-500.0,0.00032999,11]
[328300021,1717126284387,-500.0,0.00032999,11]
[328300022,1717126284396,-500.0,0.00032999,11]
[328300023,1717126284406,-500.0,0.00032999,11]
[328300024,1717126284415,-500.0,0.00032999,11]
[328300025,1717126284425,-587.37901444,0.00032999,11]
[328300026,1717126284435,-500.0,0.00032999,11]
[328300027,1717126284445,-500.0,0.00032999,11]
[328300028,1717126284454,-500.0,0.00032999,11]
[328300029,1717126284464,-500.0,0.00032999,11]
[328300030,1717126284474,-755.12,0.00032999,11]
[328300031,1717126284483,-755.12,0.00032999,11]
[328300032,1717126284493,-387.37904172,0.00032999,11]
[328300033,1717126284502,-500.0,0.00032999,11]
[328300034,1717126284512,-500.0,0.00032999,11]
[328300035,1717126284522,-500.0,0.00032999,11]
[328300036,1717126284532,-500.0,0.00032999,11]
[328300037,1717126284542,-310.40605034,0.00032999,11]
[328300038,1717126284551,-500.0,0.00032999,11]
[328300039,1717126284560,-511.78517686,0.00032999,11]
[328300040,1717126284570,-764.0,0.00032999,11]
[328300041,1717126284579,-764.0,0.00032999,11]
[328300042,1717126284588,-500.0,0.00032999,11]
[328300043,1717126284598,-500.0,0.00032999,11]
[328300044,1717126284608,-589.71,0.00032999,11]
[328300045,1717126284617,-500.0,0.00032999,11]
[328300046,1717126284627,-500.0,0.00032999,11]
[328300047,1717126284636,-644.98,0.00032999,11]
[328300048,1717126284646,-644.98,0.00032999,11]
[328300049,1717126284655,-496.75907461,0.00032999,11]
[328300050,1717126284665,-500.0,0.00032999,11]
[328300051,1717126284674,-500.0,0.00032999,11]
[328300052,1717126284684,-500.0,0.00032999,11]
[328300053,1717126284693,-633.82923287,0.00032999,11]
[328300054,1717126284703,-500.0,0.00032999,11]
[328300055,1717126284713,-500.0,0.00032999,11]
[328300056,1717126284722,-500.0,0.00032999,11]
[328300057,1717126284732,-500.0,0.00032999,11]
[328300058,1717126284742,-500.0,0.00032999,11]
[328300059,1717126284752,-606.4799018,0.00032999,11]
[328300060,1717126284762,-500.0,0.00032999,11]
[328300061,1717126284771,-779.67,0.00032999,11]
[328300062,1717126284782,-779.67,0.00032999,11]
[328300063,1717126284791,-500.0,0.00032999,11]
[328300064,1717126284800,-500.0,0.00032999,11]
[328300065,1717126284810,-500.0,0.00032999,11]
[328300066,1717126284820,-500.0,0.00032999,11]
[328300067,1717126284830,-500.0,0.00032999,11]
[328300068,1717126284839,-500.0,0.00032999,11]
[328300069,1717126284850,-500.0,0.00032999,11]
[328300070,1717126284860,-500.0,0.00032999,11]
[328300071,1717126284870,-500.0,0.00032999,11]
[328300072,1717126284881,-500.0,0.00032999,11]
[328300073,1717126284891,-665.52,0.00032999,11]
[328300074,1717126284900,-665.52,0.00032999,11]
[328300075,1717126284910,-519.49,0.00032999,11]
[328300076,1717126284920,-519.49,0.00032999,11]
[328300077,1717126284929,-1219.8,0.00032999,11]
[328300078,1717126284939,-1219.8,0.00032999,11]
[328300079,1717126284948,-500.0,0.00032999,11]
[328300080,1717126284957,-500.0,0.00032999,11]
[328300081,1717126284967,-179.22013715,0.00032999,11]
[328300082,1717126284977,-588.16,0.00032999,11]
[328300083,1717126285123,-588.16,0.00032999,11]
[328300084,1717126285152,-500.0,0.00032999,11]
[328300085,1717126285162,-500.0,0.00032999,11]
[328300086,1717126285171,-500.0,0.00032999,11]
[328300087,1717126285183,-500.0,0.00032999,11]
[328300088,1717126285193,-746.67,0.00032999,11]
[328300089,1717126285202,-746.67,0.00032999,11]
[328300090,1717126285212,-500.0,0.00032999,11]
[328300091,1717126285221,-609.45321914,0.00032999,11]
[328300092,1717126285230,-1796.81,0.00032999,11]
[328300093,1717126285239,-1796.81,0.00032999,11]
[328300094,1717126285249,-500.0,0.00032999,11]
[328300095,1717126285259,-500.0,0.00032999,11]
[328300096,1717126285268,-1562.6,0.00032999,11]
[328300097,1717126285277,-1562.6,0.00032999,11]
[328300098,1717126285287,-1065.81,0.00032999,11]
[328300099,1717126285296,-1065.81,0.00032999,11]
[328300100,1717126285305,-500.0,0.00032999,11]
[328300101,1717126285315,-371.95793974,0.00032999,11]
[328300102,1717126285324,-500.0,0.00032999,11]
[328300103,1717126285333,-500.0,0.00032999,11]
[328300104,1717126285344,-642.02,0.00032999,11]
[328300105,1717126285354,-642.02,0.00032999,11]
[328300106,1717126285364,-500.0,0.00032999,11]
[328300107,1717126285374,-500.0,0.00032999,11]
[328300108,1717126285383,-500.0,0.00032999,11]
[328300109,1717126285393,-500.0,0.00032999,11]
[328300110,1717126285403,-500.0,0.00032999,11]
[328300111,1717126285413,-500.0,0.00032999,11]
[328300112,1717126285422,-580.39,0.00032999,11]
[328300113,1717126285431,-580.39,0.00032999,11]
[328300114,1717126285441,-500.0,0.00032999,11]
[328300115,1717126285451,-500.0,0.00032999,11]
[328300116,1717126285460,-500.0,0.00032999,11]
[328300117,1717126285470,-500.0,0.00032999,11]
[328300118,1717126285480,-531.87,0.00032999,11]
[328300119,1717126285490,-500.0,0.00032999,11]
[328300120,1717126285499,-531.87,0.00032999,11]
[328300121,1717126285511,-509.02938195,0.00032999,11]
[328300122,1717126285525,-500.0,0.00032999,11]
[328300123,1717126285546,-500.0,0.00032999,11]
[328300124,1717126285566,-579.91,0.00032999,11]
[328300125,1717126285587,-579.91,0.00032999,11]
[328300126,1717126285606,-500.0,0.00032999,11]
[328300127,1717126285628,-500.0,0.00032999,11]
[328300128,1717126285648,-500.0,0.00032999,11]
[328300129,1717126285669,-500.0,0.00032999,11]
[328300130,1717126285688,-501.65,0.00032999,11]
[328300131,1717126285709,-501.65,0.00032999,11]
[328300132,1717126285729,-151.98491503,0.00032999,11]
[328300133,1717126285748,-500.0,0.00032999,11]
[328300134,1717126285757,-500.0,0.00032999,11]
[328300135,1717126285767,-500.0,0.00032999,11]
[328300136,1717126285776,-500.0,0.00032999,11]
[328300137,1717126285785,-245.89,0.00032999,11]
[328300138,1717126285795,-685.46,0.00032999,11]
[328300139,1717126285803,-685.46,0.00032999,11]
[328300140,1717126285813,-575.06,0.00032999,11]
[328300141,1717126285822,-575.06,0.00032999,11]
[328300142,1717126285831,-500.0,0.00032999,11]
[328300143,1717126285840,-500.0,0.00032999,11]
[328300144,1717126285850,-196.32963624,0.00032999,11]
[328300145,1717126285859,-532.09755805,0.00032999,11]
[328300146,1717126285869,-971.96,0.00032999,11]
[328300147,1717126285880,-2247.1,0.00032999,11]
[328300148,1717126285889,-971.96,0.00032999,11]
[328300149,1717126285899,-2247.1,0.00032999,11]
[328300150,1717126285909,-500.0,0.00032999,11]
[328300151,1717126285919,-1002.83,0.00032999,2]
[328300152,1717126285928,-500.0,0.00032999,11]
[328300153,1717126285937,-1002.83,0.00032999,2]
[328300154,1717126285946,-500.0,0.00032999,11]
[328300155,1717126285955,-500.0,0.00032999,11]
[328300156,1717126285965,-500.0,0.00032999,11]
[328300157,1717126285975,-510.03,0.00032999,11]
[328300158,1717126285984,-510.03,0.00032999,11]
[328300159,1717126285994,-500.0,0.00032999,11]
[328300160,1717126286003,-500.0,0.00032999,11]
[328300161,1717126286012,-500.0,0.00032999,11]
[328300162,1717126286022,-500.0,0.00032999,11]
[328300163,1717126286031,-500.0,0.00032999,11]
[328300164,1717126286040,-500.0,0.00032999,11]
[328300165,1717126286050,-500.0,0.00032999,11]
[328300166,1717126286059,-500.0,0.00032999,11]
[328300167,1717126286069,-500.0,0.00032999,11]
[328300168,1717126286079,-500.0,0.00032999,11]
[328300169,1717126286089,-500.0,0.00032999,11]
[328300170,1717126286101,-500.0,0.00032999,11]
[328300171,1717126286111,-330.18033416,0.00032999,11]
[328300172,1717126286120,-500.0,0.00032999,11]
[328300173,1717126286130,-500.0,0.00033,2]
[328300174,1717126286139,-3763.0,0.00033,2]
[328300175,1717126286149,-340784.0,0.00033,2]
[328300176,1717126286158,-1008.528658,0.00033,10]
[328300177,1717126286168,-7180.0,0.00033,3]
[328300178,1717126286178,-44584.55547108,0.00033,2]
[328300179,1717126286187,-205.85134069,0.00033,5]
[328300180,1717126286198,-2000.0,0.00033,2]
[328300181,1717126286207,-2000.0,0.00033,2]
[328300182,1717126286218,-2000.0,0.00033,2]
[328300183,1717126286227,-2000.0,0.00033,2]
[328300184,1717126286237,-2000.0,0.00033,2]
[328300185,1717126286246,-2000.0,0.00033,2]
[328300186,1717126286256,-2000.0,0.00033,2]
[328300187,1717126286265,-2000.0,0.00033,2]
[328300188,1717126286275,-1507.84,0.00033,2]
[328300189,1717126286284,-1250.0,0.00033,2]
[328300190,1717126286294,-2025.2035,0.00033,2]
[328300191,1717126286303,-355.0,0.00033,2]
[328300192,1717126286312,-1000.0,0.00033,2]
[328300193,1717126286322,-224.0,0.00033,2]
[328300194,1717126286331,-500.0,0.00033002,3]
[328300195,1717126286340,-4281.42296838,0.00033007,5]
[328300196,1717126286350,-500.0,0.00033011,3]
[328300197,1717126286360,-500.0,0.0003302,3]
[328300198,1717126286370,-500.0,0.00033028,11]
[328300199,1717126286379,-500.0,0.00033028,2]
[328300200,1717126286389,-500.0,0.00033028,11]
[328300201,1717126286399,-1035.25,0.00033028,11]
[328300202,1717126286408,-500.0,0.00033028,11]
[328300203,1717126286417,-500.0,0.00033028,11]
[328300204,1717126286427,-500.0,0.00033028,11]
[328300205,1717126286436,-500.0,0.00033028,11]
[328300206,1717126286445,-589.71,0.00033028,11]
[328300207,1717126286455,-500.0,0.00033028,11]
[328300208,1717126286464,-500.0,0.00033028,11]
[328300209,1717126286474,-500.0,0.00033028,11]
[328300210,1717126286484,-500.0,0.00033028,11]
[328300211,1717126286494,-500.0,0.00033029,3]
[328300212,1717126286504,-500.0,0.00033033,10]
[328300213,1717126286513,-200.0,0.00033033,10]
[328300214,1717126286523,-500.0,0.00033038,3]
[328300215,1717126286532,-158.59,0.00033045,2]
[328300216,1717126286542,-4281.42296838,0.00033046,5]
[328300217,1717126286552,-500.0,0.00033046,3]
[328300218,1717126286561,-153.17750469,0.00033049,7]
[328300219,1717126286571,-500.0,0.00033055,3]
[328300220,1717126286580,-500.0,0.00033064,3]
[328300221,1717126286590,-4281.42296838,0.00033084,5]
[328300222,1717126286601,-167.15627377,0.00033097,10]
[328300223,1717126286610,-4281.42296838,0.00033123,5]
[328300224,1717126286619,-4281.42296838,0.00033161,5]
[328300225,1717126286633,-4281.42296838,0.000332,5]
[328300226,1717126286642,-247.04228669,0.000332,5]
[328300227,1717126286652,-167.15627377,0.000332,10]
[328300228,1717126286662,-150.0,0.000332,13]
[328300229,1717126286671,-150.0,0.000332,7]
[328300230,1717126286681,-1380.96350453,0.000332,2]
[328300231,1717126286690,-577.40099432,0.000332,2]
[328300232,1717126286700,-152.94836458,0.00033246,2]
[328300233,1717126286710,-644.98,0.00033297,11]
[328300234,1717126286720,-500.0,0.00033297,11]
[328300235,1717126286729,-1065.81,0.00033297,11]
[328300236,1717126286739,-428.48,0.00033297,11]
[328300237,1717126286749,-635.66,0.00033297,11]
[328300238,1717126286759,-971.96,0.00033297,11]
[328300239,1717126286768,-975.66719049,0.00033298,4]
[328300240,1717126286778,-229.00475518,0.00033298,4]
[328300241,1717126286787,-237.03596664,0.00033298,4]
[328300242,1717126286797,-220.39051845,0.00033298,4]
[328300243,1717126286807,-1668.29487823,0.00033298,4]
[328300244,1717126286817,-541.7705995,0.00033298,4]
[328300245,1717126286827,-796.82607951,0.00033298,4]
[328300246,1717126286836,-265.85002154,0.00033298,4]
[328300247,1717126286848,-155.9071351,0.00033298,4]
[328300248,1717126286857,-156.26885425,0.00033298,4]
[328300249,1717126286867,-155.89495642,0.00033298,4]
[328300250,1717126286876,-323.65044678,0.00033298,4]
[328300251,1717126286886,-1661.50499224,0.00033298,4]
[328300252,1717126286896,-159.57124569,0.00033298,4]
[328300253,1717126286905,-3120.1134891,0.00033298,4]
[328300254,1717126286914,-240.95766921,0.00033298,4]
[328300255,1717126286923,-376.84465986,0.00033298,4]
[328300256,1717126286933,-159.25005206,0.00033298,4]
[328300257,1717126286942,-261.42799349,0.00033298,4]
[328300258,1717126286951,-155.20121005,0.00033298,4]
[328300259,1717126286960,-3332.93131314,0.00033298,4]
[328300260,1717126286969,-260.78791237,0.00033298,4]
[328300261,1717126286978,-235.34429688,0.00033298,4]
[328300262,1717126286988,-210.09599203,0.00033298,4]
[328300263,1717126286997,-276.70792554,0.00033298,4]
[328300264,1717126287007,-1023.80094,0.00033298,3]
[328300265,1717126287017,-180.08157155,0.00033298,4]
[328300266,1717126287026,-328.78184283,0.00033298,4]
[328300267,1717126287035,-155.97259723,0.00033298,4]
[328300268,1717126287045,-1260.17604849,0.00033298,4]
[328300269,1717126287054,-155.36547385,0.00033298,4]
[328300270,1717126287065,-2378.28462923,0.00033298,4]
[328300271,1717126287074,-10217.18053244,0.00033298,5]
[328300272,1717126287084,-822.85522552,0.00033298,4]
[328300273,1717126287096,-794.01341274,0.00033298,4]
[328300274,1717126287107,-2226.31055245,0.00033298,2]
[328300275,1717126287116,-1483.97277034,0.00033298,4]
[328300276,1717126287125,-155.47489435,0.00033298,4]
[328300277,1717126287135,-234.70129821,0.00033298,4]
[328300278,1717126287145,-964.25974955,0.00033298,4]
[328300279,1717126287154,-410.0305034,0.00033298,4]
[328300280,1717126287163,-222.13876164,0.00033298,4]
[328300281,1717126287173,-157.38625,0.00033298,4]
[328300282,1717126287183,-174.16873676,0.00033298,7]
[328300283,1717126287192,-4886.62513061,0.00033298,4]
[328300284,1717126287202,-269.74591848,0.00033298,4]
[328300285,1717126287211,-182.39089585,0.00033298,4]
[328300286,1717126287221,-157.67057076,0.00033298,4]
[328300287,1717126287230,-207.88343587,0.00033298,4]
[328300288,1717126287240,-162.7645894,0.00033298,4]
[328300289,1717126287249,-500.0,0.00033298,11]
[328300290,1717126287259,-500.0,0.00033298,11]
[328300291,1717126287268,-500.0,0.00033298,11]
[328300292,1717126287278,-500.0,0.00033298,11]
[328300293,1717126287287,-500.0,0.00033298,11]
[328300294,1717126287297,-508.67,0.00033298,11]
[328300295,1717126287306,-500.0,0.00033298,11]
[328300296,1717126287315,-573.44,0.00033298,11]
[328300297,1717126287324,-500.0,0.00033298,11]
[328300298,1717126287333,-500.0,0.00033298,11]
[328300299,1717126287343,-571.92,0.00033298,11]
[328300300,1717126287353,-571.92,0.00033298,11]
[328300301,1717126287362,-612.91,0.00033298,11]
[328300302,1717126287374,-500.0,0.00033298,11]
[328300303,1717126287383,-500.0,0.00033298,11]
[328300304,1717126287392,-500.0,0.00033298,11]
[328300305,1717126287401,-500.0,0.00033298,11]
[328300306,1717126287409,-500.0,0.00033298,11]
[328300307,1717126287419,-755.12,0.00033298,11]
[328300308,1717126287428,-500.0,0.00033298,11]
[328300309,1717126287437,-500.0,0.00033298,11]
[328300310,1717126287446,-764.0,0.00033298,11]
[328300311,1717126287455,-500.0,0.00033298,11]
[328300312,1717126287464,-589.71,0.00033298,11]
[328300313,1717126287474,-500.0,0.00033298,11]
[328300314,1717126287483,-644.98,0.00033298,11]
[328300315,1717126287492,-500.0,0.00033298,11]
[328300316,1717126287501,-561.24,0.00033298,11]
[328300317,1717126287511,-500.0,0.00033298,11]
[328300318,1717126287520,-403.76886419,0.00033298,11]
[328300319,1717126287529,-779.67,0.00033298,11]
[328300320,1717126287538,-500.0,0.00033298,11]
[328300321,1717126287547,-500.0,0.00033298,11]
[328300322,1717126287556,-500.0,0.00033298,11]
[328300323,1717126287566,-500.0,0.00033298,11]
[328300324,1717126287576,-641.11638285,0.00033298,11]
[328300325,1717126287584,-500.0,0.00033298,11]
[328300326,1717126287594,-500.0,0.00033298,11]
[328300327,1717126287603,-665.52,0.00033298,11]
[328300328,1717126287612,-519.49,0.00033298,11]
[328300329,1717126287621,-1219.8,0.00033298,11]
[328300330,1717126287630,-503.86875278,0.00033298,11]
[328300331,1717126287639,-588.16,0.00033298,11]
[328300332,1717126287648,-500.0,0.00033298,11]
[328300333,1717126287657,-500.0,0.00033298,11]
[328300334,1717126287667,-500.0,0.00033298,11]
[328300335,1717126287677,-500.0,0.00033298,11]
[328300336,1717126287686,-746.67,0.00033298,11]
[328300337,1717126287695,-746.67,0.00033298,11]
[328300338,1717126287705,-1796.81,0.00033298,11]
[328300339,1717126287714,-500.0,0.00033298,11]
[328300340,1717126287723,-1562.6,0.00033298,11]
[328300341,1717126287733,-1065.81,0.00033298,11]
[328300342,1717126287743,-500.0,0.00033298,11]
[328300343,1717126287753,-642.02,0.00033298,11]
[328300344,1717126287762,-500.0,0.00033298,11]
[328300345,1717126287772,-328.03,0.00033298,11]
[328300346,1717126287781,-580.39,0.00033298,11]
[328300347,1717126287790,-580.39,0.00033298,11]
[328300348,1717126287801,-500.0,0.00033298,11]
[328300349,1717126287812,-500.0,0.00033298,11]
[328300350,1717126287821,-500.0,0.00033298,11]
[328300351,1717126287833,-531.87,0.00033298,11]
[328300352,1717126287843,-531.87,0.00033298,11]
[328300353,1717126287853,-579.91,0.00033298,11]
[328300354,1717126287862,-617.50904708,0.00033298,11]
[328300355,1717126287871,-579.91,0.00033298,11]
[328300356,1717126287881,-500.0,0.00033298,11]
[328300357,1717126287891,-500.0,0.00033298,11]
[328300358,1717126287901,-501.65,0.00033298,11]
[328300359,1717126287909,-501.65,0.00033298,11]
[328300360,1717126287919,-500.0,0.00033298,11]
[328300361,1717126287927,-500.0,0.00033298,11]
[328300362,1717126287937,-500.0,0.00033298,11]
[328300363,1717126287946,-685.46,0.00033298,11]
[328300364,1717126287955,-685.46,0.00033298,11]
[328300365,1717126287964,-575.06,0.00033298,11]
[328300366,1717126287973,-575.06,0.00033298,11]
[328300367,1717126287982,-500.0,0.00033298,11]
[328300368,1717126287991,-2247.1,0.00033298,11]
[328300369,1717126288001,-971.96,0.00033298,11]
[328300370,1717126288010,-2247.1,0.00033298,11]
[328300371,1717126288020,-1002.83,0.00033298,2]
[328300372,1717126288029,-500.0,0.00033298,11]
[328300373,1717126288038,-1002.83,0.00033298,2]
[328300374,1717126288047,-500.0,0.00033298,11]
[328300375,1717126288056,-500.0,0.00033298,11]
[328300376,1717126288065,-510.03,0.00033298,11]
[328300377,1717126288075,-510.03,0.00033298,11]
[328300378,1717126288085,-500.0,0.00033298,11]